[Event "Czech Open Rapid G1 2024"]
[Site "Pardubice"]
[Date "2024.07.17"]
[Round "2.9"]
[White "Lalic, Bogdan"]
[Black "Ocelak, Jakub"]
[Result "1/2-1/2"]
[Annotator "RC"]
[ECO "E05"]
[WhiteElo "2348"]
[BlackElo "2206"]
[PlyCount "35"]
[EventDate "2024.07.16"]
[EventType "swiss"]
[EventCountry "CZE"]
[SourceTitle "playchess.com"]
[Source "ChessBase"]
[SourceQuality "1"]
[TimeControl "1200+10"]

1. Nf3 {[%emt 0:00:03]} Nf6 {[%emt 0:00:04]} 2. c4 {[%emt 0:00:05]} e6 {[%emt 0:00:15]} 3. g3 {[%emt 0:00:06]} d5 {[%emt 0:00:03]} 4. Bg2 {[%emt 0:00:05]} Be7 {[%emt 0:00:03]} 5. d4 {[%emt 0:00:08]} O-O {[%emt 0:00:08]} 6. O-O {[%emt 0:00:06]} dxc4 {[%emt 0:00:04]} 7. Qc2 {[%emt 0:00:07]} a6 {[%emt 0:00:01]} 8. a4 {[%emt 0:00:09]} Nc6 {[%emt 0:00:03]} 9. Qxc4 {[%emt 0:00:13]} Na5 {[%emt 0:00:02]} 10. Qc2 {[%emt 0:00:29]} b6 {[%emt 0:00:01]} 11. Nc3 {[%emt 0:01:03]} Bb7 {[%emt 0:00:09]} 12. e4 {[%emt 0:00:52]} c5 {[%emt 0:01:41]} 13. Rd1 {[%emt 0:00:16]} cxd4 {[%emt 0:01:23]} 14. Nxd4 {[%emt 0:00:06]} Qc7 {[%emt 0:01:57]} 15. Nb3 {[%emt 0:03:13]} Nxb3 {[%emt 0:04:49]} 16. Qxb3 {[%emt 0:00:06]} Bc5 {[%emt 0:00:03]} 17. Bf4 {[%emt 0:00:25]} Qe7 {[%emt 0:00:51]} 18. h3 {[%emt 0:01:12]} 1/2-1/2

[Event "Czech Open Rapid G1 2024"]
[Site "Pardubice"]
[Date "2024.07.17"]
[Round "2.10"]
[White "Fishchuk, Vladyslav"]
[Black "Rasik, Vitezslav"]
[Result "1/2-1/2"]
[Annotator "TA"]
[ECO "B09"]
[WhiteElo "2234"]
[BlackElo "2415"]
[PlyCount "48"]
[EventDate "2024.07.16"]
[EventType "swiss"]
[EventCountry "CZE"]
[SourceTitle "playchess.com"]
[Source "ChessBase"]
[SourceQuality "1"]
[TimeControl "1200+10"]

{[%evp 17,48,6,3,-2,0,-1,0,-14,0,-18,20,8,42,22,69,60,67,30,51,-4,0,0,0,-9,-7,-4,0,-37,0,-1,0,0,-6]} 1. d4 {[%emt 0:00:02]} d6 {[%emt 0:00:04]} 2. e4 {[%emt 0:00:06]} g6 {[%emt 0:00:02]} 3. Nc3 {[%emt 0:00:07]} Bg7 {[%emt 0:00:03]} 4. f4 {[%emt 0:00:04]} Nf6 {[%emt 0:00:04]} 5. Nf3 {[%emt 0:00:04]} O-O {[%emt 0:00:06]} 6. Bd3 {[%emt 0:00:04]} Nc6 {[%emt 0:00:06]} 7. O-O {[%emt 0:00:19]} e5 {[%emt 0:00:54]} 8. dxe5 {[%emt 0:00:02]} dxe5 {[%emt 0:00:04]} 9. f5 {[%emt 0:00:07]} Nb4 {[%emt 0:01:36]} 10. Bg5 {[%emt 0:01:39]} Nxd3 {[%emt 0:00:28]} 11. cxd3 {[%emt 0:00:05]} gxf5 {[%emt 0:04:19]} 12. Kh1 {[%emt 0:00:18]} Qd6 {[%emt 0:01:34]} 13. Qe2 {[%emt 0:03:06]} fxe4 {[%emt 0:03:34]} 14. dxe4 {[%emt 0:00:02]} c6 {[%emt 0:00:39]} 15. Rad1 {[%emt 0:00:03][%mdl 1024] White has compensation.} Qc5 {[%emt 0:00:21]} (15... Qc7 $11 {deserves consideration.}) 16. Qe1 $1 $14 {[%emt 0:00:42] Hoping for Qh4. White is more active.} Kh8 {[%emt 0:02:54]} 17. Nh4 {[%emt 0:03:40]} Ng8 {[%emt 0:00:34]} 18. Rd2 {[%emt 0:00:51]} (18. Qe2 $1 $14) 18... Be6 {[%emt 0:00:16]} 19. Nf5 {[%emt 0:00:07]} Bxf5 {[%emt 0:00:48]} 20. Rxf5 {[%emt 0:00:01]} f6 {[%emt 0:00:55]} 21. Be3 {[%emt 0:00:35]} Qe7 {[%emt 0:00:01]} 22. Qd1 {[%emt 0:00:19]} Rfd8 {[%emt 0:00:15]} 23. Rff2 {[%emt 0:00:20]} Bh6 {[%emt 0:00:17]} 24. Bxh6 {[%emt 0:00:30]} Nxh6 {[%emt 0:00:02] Weighted Error Value: White=0.15 (very precise) /Black=0.13 (very precise) .  Mistake:       	White=1     	Black=1      Inaccurate:     	White=2     	Black=3      OK:         	White=4     	Black=6      Strong:       	White=1     	---} 1/2-1/2

[Event "Czech Open Rapid G1 2024"]
[Site "Pardubice"]
[Date "2024.07.17"]
[Round "2.11"]
[White "Ret, Adam Josef"]
[Black "Konopka, Michal"]
[Result "0-1"]
[Annotator "RC"]
[ECO "D79"]
[WhiteElo "2085"]
[BlackElo "2326"]
[PlyCount "72"]
[EventDate "2024.07.16"]
[EventType "swiss"]
[EventCountry "CZE"]
[SourceTitle "playchess.com"]
[Source "ChessBase"]
[SourceQuality "1"]
[TimeControl "1200+10"]

1. c4 {[%emt 0:00:01]} Nf6 {[%emt 0:01:17]} 2. g3 {[%emt 0:00:02]} c6 {[%emt 0:00:10]} 3. Bg2 {[%emt 0:00:09]} d5 {[%emt 0:00:04]} 4. Nf3 {[%emt 0:00:03]} g6 {[%emt 0:00:07]} 5. O-O {[%emt 0:00:03]} Bg7 {[%emt 0:00:02]} 6. d4 {[%emt 0:00:02]} O-O {[%emt 0:00:18]} 7. cxd5 {[%emt 0:02:16]} cxd5 {[%emt 0:00:01]} 8. Ne5 {[%emt 0:00:29]} e6 {[%emt 0:00:06]} 9. Nc3 {[%emt 0:00:11]} Nc6 {[%emt 0:00:07]} 10. Nxc6 {[%emt 0:00:25]} bxc6 {[%emt 0:00:02]} 11. Bf4 {[%emt 0:00:56]} Nd7 {[%emt 0:00:17]} 12. e4 {[%emt 0:00:57]} Qb6 {[%emt 0:00:58]} 13. Bd6 {[%emt 0:00:25]} Re8 {[%emt 0:00:57]} 14. e5 {[%emt 0:01:00]} Qxb2 {[%emt 0:03:11]} 15. Na4 {[%emt 0:00:03]} Qb5 {[%emt 0:00:10]} 16. Rb1 {[%emt 0:01:05]} Qa5 {[%emt 0:00:15]} 17. Qc2 {[%emt 0:02:16]} Ba6 {[%emt 0:00:25]} 18. Rfc1 {[%emt 0:04:32]} Rec8 {[%emt 0:00:34]} 19. Bf1 {[%emt 0:01:01]} Bxf1 {[%emt 0:00:42]} 20. Kxf1 {[%emt 0:00:02]} Bh6 {[%emt 0:01:21]} 21. f4 {[%emt 0:00:12]} Bf8 {[%emt 0:00:04]} 22. Bxf8 {[%emt 0:00:56]} Kxf8 {[%emt 0:00:26]} 23. Kg1 {[%emt 0:00:15]} Rab8 {[%emt 0:02:25]} 24. Rxb8 {[%emt 0:00:16]} Rxb8 {[%emt 0:00:06]} 25. Qxc6 {[%emt 0:00:37]} Qd2 {[%emt 0:00:13]} 26. Qc3 {[%emt 0:03:35]} Qxa2 {[%emt 0:00:07]} 27. Ra1 {[%emt 0:01:02]} Rb1+ {[%emt 0:00:45]} 28. Rxb1 {[%emt 0:00:02]} Qxb1+ {[%emt 0:00:01]} 29. Kg2 {[%emt 0:00:05]} Qa2+ {[%emt 0:00:19]} 30. Nb2 {[%emt 0:00:01]} Kg7 {[%emt 0:01:13]} 31. Kh3 {[%emt 0:00:03]} Nb6 {[%emt 0:00:44]} 32. Qc7 {[%emt 0:00:31]} Qxb2 {[%emt 0:01:08]} 33. Qe7 {[%emt 0:00:22]} Qb5 {[%emt 0:01:16]} 34. Qf6+ {[%emt 0:00:27]} Kf8 {[%emt 0:00:08]} 35. Qh8+ {[%emt 0:00:16]} Ke7 {[%emt 0:00:02]} 36. Qf6+ {[%emt 0:00:01]} Ke8 {[%emt 0:00:28]} 0-1

[Event "Czech Open Rapid G1 2024"]
[Site "Pardubice"]
[Date "2024.07.17"]
[Round "2.12"]
[White "Cerveny, Martin"]
[Black "Ptacek, Lubos"]
[Result "1-0"]
[Annotator "RC"]
[ECO "A13"]
[WhiteElo "2325"]
[BlackElo "2036"]
[PlyCount "79"]
[EventDate "2024.07.16"]
[EventType "swiss"]
[EventCountry "CZE"]
[SourceTitle "playchess.com"]
[Source "ChessBase"]
[SourceQuality "1"]
[TimeControl "1200+10"]

1. Nf3 {[%emt 0:00:03]} d5 {[%emt 0:00:03]} 2. c4 {[%emt 0:00:02]} e6 {[%emt 0:00:06]} 3. e3 {[%emt 0:00:03]} Nf6 {[%emt 0:00:06]} 4. b3 {[%emt 0:00:02]} Be7 {[%emt 0:00:32]} 5. Be2 {[%emt 0:00:04]} O-O {[%emt 0:00:05]} 6. O-O {[%emt 0:00:04]} c5 {[%emt 0:00:13]} 7. Bb2 {[%emt 0:00:06]} Nc6 {[%emt 0:00:18]} 8. cxd5 {[%emt 0:00:02]} exd5 {[%emt 0:00:09]} 9. d4 {[%emt 0:00:02]} Bf5 {[%emt 0:00:49]} 10. dxc5 {[%emt 0:00:30]} Bxc5 {[%emt 0:00:14]} 11. Nd4 {[%emt 0:00:07]} Nxd4 {[%emt 0:00:12]} 12. Bxd4 {[%emt 0:00:03]} Bxd4 {[%emt 0:00:06]} 13. Qxd4 {[%emt 0:00:03]} a6 {[%emt 0:00:30]} 14. Nd2 {[%emt 0:00:58]} Rc8 {[%emt 0:00:13]} 15. Rfc1 {[%emt 0:00:28]} Qd7 {[%emt 0:00:55]} 16. h3 {[%emt 0:00:14]} h6 {[%emt 0:00:40]} 17. Nf3 {[%emt 0:00:19]} Rxc1+ {[%emt 0:00:11]} 18. Rxc1 {[%emt 0:00:01]} Rc8 {[%emt 0:00:01]} 19. Rc5 {[%emt 0:01:17]} Rxc5 {[%emt 0:00:23]} 20. Qxc5 {[%emt 0:00:01]} Ne4 {[%emt 0:00:27]} 21. Qc1 {[%emt 0:00:02]} Qe7 {[%emt 0:00:19]} 22. Nd4 {[%emt 0:00:25]} Qh4 {[%emt 0:00:31]} 23. Qf1 {[%emt 0:00:16]} Bd7 {[%emt 0:00:25]} 24. Bf3 {[%emt 0:00:58]} Qg5 {[%emt 0:02:02]} 25. Kh2 {[%emt 0:03:35]} Qe5+ {[%emt 0:00:33]} 26. Kh1 {[%emt 0:00:26]} Qf6 {[%emt 0:00:25]} 27. Qe1 {[%emt 0:00:32]} Qh4 {[%emt 0:01:05]} 28. Kg1 {[%emt 0:00:20]} Qg5 {[%emt 0:00:53]} 29. Qb4 {[%emt 0:00:56]} b5 {[%emt 0:02:23]} 30. Qa5 {[%emt 0:00:09]} Bxh3 {[%emt 0:00:22]} 31. Qxa6 {[%emt 0:00:09]} Nd2 {[%emt 0:02:38]} 32. Qa8+ {[%emt 0:00:40]} Kh7 {[%emt 0:00:01]} 33. Qxd5 {[%emt 0:00:03]} Nxf3+ {[%emt 0:01:05]} 34. Qxf3 {[%emt 0:00:01]} Be6 {[%emt 0:00:13]} 35. Qe4+ {[%emt 0:00:35]} Kh8 {[%emt 0:00:13]} 36. Nxe6 {[%emt 0:00:07]} fxe6 {[%emt 0:00:01]} 37. Qxe6 {[%emt 0:00:02]} Qc5 {[%emt 0:00:10]} 38. Qe8+ {[%emt 0:00:21]} Kh7 {[%emt 0:00:02]} 39. Qe4+ {[%emt 0:00:01]} Kh8 {[%emt 0:00:00]} 40. a4 {[%emt 0:00:03]} 1-0

[Event "Czech Open Rapid G1 2024"]
[Site "Pardubice"]
[Date "2024.07.17"]
[Round "2.13"]
[White "Vrana, Frantisek"]
[Black "Bures, Jaroslav"]
[Result "0-1"]
[Annotator "TA"]
[ECO "B18"]
[WhiteElo "2147"]
[BlackElo "2418"]
[PlyCount "35"]
[EventDate "2024.07.16"]
[EventType "swiss"]
[EventCountry "CZE"]
[SourceTitle "playchess.com"]
[Source "ChessBase"]
[SourceQuality "1"]
[TimeControl "1200+10"]

{[%evp 11,35,5,17,-4,20,-28,-24,-22,-27,-89,-74,-139,-88,-142,-135,-141,-136,-142,-137,-180,-171,-254,-256,-254,-260,-886]} 1. e4 {[%emt 0:00:03]} c6 {[%emt 0:00:01]} 2. d4 {[%emt 0:00:10]} d5 {[%emt 0:00:01]} 3. Nc3 {[%emt 0:00:01]} dxe4 {[%emt 0:00:01]} 4. Nxe4 {[%emt 0:00:02]} Bf5 {[%emt 0:00:01]} 5. Ng3 {[%emt 0:00:02]} Bg6 {[%emt 0:00:02]} 6. Nh3 {[%emt 0:00:05]} Nd7 {[%emt 0:00:11]} 7. Nf4 {[%emt 0:00:02]} Ngf6 {[%emt 0:00:03]} 8. h4 {[%emt 0:00:31]} (8. Bc4 $142) 8... e5 $11 {[%emt 0:00:03]} 9. Nxg6 {[%emt 0:00:27] Black has an edge.} hxg6 {[%emt 0:00:02]} 10. Be3 {[%emt 0:01:06]} (10. dxe5 $11 Qa5+ 11. Bd2 Qxe5+ 12. Qe2) 10... Nd5 {[%emt 0:01:26]} 11. Bg5 {[%emt 0:01:12] [#]} ({Better is} 11. Qd2) 11... Be7 {[%emt 0:01:22]} (11... Qb6 $142 $1 12. Rb1 exd4 (12... Qxd4 13. Qxd4 exd4 14. Bc4 $17)) 12. c4 {[%emt 0:03:33]} ({White should try} 12. Qd2) 12... Bxg5 $17 {[%emt 0:00:50]} 13. hxg5 {[%emt 0:00:02]} Rxh1 {[%emt 0:00:12]} 14. Nxh1 {[%emt 0:00:10]} Nf4 {[%emt 0:01:16] Black is more active.} 15. dxe5 {[%emt 0:03:08]} Qxg5 {[%emt 0:01:06][%cal Oe8c8] [#] ...0-0-0! would now be deadly.} 16. Qd6 {[%emt 0:00:14]} (16. Qd2 {was called for.}) 16... O-O-O $19 {[%emt 0:03:05]} ({Much less strong is} 16... Qxe5+ 17. Qxe5+ Nxe5 18. Rd1 $19) 17. Rd1 {[%emt 0:00:22]} Ne6 {[%emt 0:01:04] A dynamic duo of knights.} ({Don't take} 17... Nxe5 18. Qxd8+ Qxd8 19. Rxd8+ Kxd8 20. Kd2 $19) ({Don't do} 17... Qxe5+ 18. Qxe5 Nxe5 19. Rxd8+ Kxd8 20. Kd2 $19) (17... Nxg2+ 18. Bxg2 Qxg2 19. Ng3 $19) 18. Ng3 $2 {[%emt 0:00:44] Black took control after the opening.   Weighted Error Value: White=0.41/Black=0.09 (flawless) .  Mistake:       	White=6     	Black=1      Inaccurate:     	White=1     	---        OK:         	---       	Black=6      Best:        	White=1     	Black=1} (18. Qa3) 0-1

[Event "Czech Open Rapid G1 2024"]
[Site "Pardubice"]
[Date "2024.07.17"]
[Round "2.14"]
[White "Kusa, Jakub"]
[Black "Dovzhenko, Viktor"]
[Result "1-0"]
[Annotator "RC"]
[ECO "A53"]
[WhiteElo "2423"]
[BlackElo "2044"]
[PlyCount "66"]
[EventDate "2024.07.16"]
[EventType "swiss"]
[EventCountry "CZE"]
[SourceTitle "playchess.com"]
[Source "ChessBase"]
[SourceQuality "1"]
[TimeControl "1200+10"]

1. Nf3 {[%emt 0:00:04]} d6 {[%emt 0:00:02]} 2. d4 {[%emt 0:00:03]} Bg4 {[%emt 0:00:04]} 3. g3 {[%emt 0:00:05]} Nf6 {[%emt 0:00:06]} 4. Bg2 {[%emt 0:00:02]} c6 {[%emt 0:00:07]} 5. c4 {[%emt 0:00:09]} Nbd7 {[%emt 0:00:02]} 6. O-O {[%emt 0:00:10]} e5 {[%emt 0:00:03]} 7. Nc3 {[%emt 0:00:14]} Be7 {[%emt 0:00:02]} 8. h3 {[%emt 0:00:17]} Bh5 {[%emt 0:01:02]} 9. Nh4 {[%emt 0:00:19]} Bg6 {[%emt 0:02:09]} 10. Nxg6 {[%emt 0:00:08]} hxg6 {[%emt 0:00:01]} 11. b4 {[%emt 0:00:19]} Qb6 {[%emt 0:01:28]} 12. dxe5 {[%emt 0:00:44]} Nxe5 {[%emt 0:00:03]} 13. b5 {[%emt 0:01:52]} Nxc4 {[%emt 0:00:22]} 14. bxc6 {[%emt 0:00:11]} bxc6 {[%emt 0:00:02]} 15. Rb1 {[%emt 0:00:19]} Qc7 {[%emt 0:00:12]} 16. Qa4 {[%emt 0:00:20]} Na5 {[%emt 0:03:03]} 17. Nb5 {[%emt 0:01:27]} Qd8 {[%emt 0:00:02]} 18. Nd4 {[%emt 0:00:18]} Rc8 {[%emt 0:02:23]} 19. Bd2 {[%emt 0:00:13]} Rh5 {[%emt 0:00:02]} 20. Nxc6 {[%emt 0:01:49]} Nxc6 {[%emt 0:00:08]} 21. Bxc6+ {[%emt 0:00:14]} Kf8 {[%emt 0:00:01]} 22. Bb7 {[%emt 0:01:45]} Rb8 {[%emt 0:02:21]} 23. Bf3 {[%emt 0:00:10]} Rc5 {[%emt 0:02:30]} 24. Qxa7 {[%emt 0:01:06]} Rbc8 {[%emt 0:00:30]} 25. Bb4 {[%emt 0:02:02]} Rc2 {[%emt 0:00:57]} 26. a4 {[%emt 0:02:17]} d5 {[%emt 0:02:00]} 27. Bxe7+ {[%emt 0:00:14]} Qxe7 {[%emt 0:00:01]} 28. Rb7 {[%emt 0:00:03]} Qe8 {[%emt 0:00:48]} 29. Rfb1 {[%emt 0:00:46]} Kg8 {[%emt 0:02:32]} 30. Re7 {[%emt 0:00:37]} Qc6 {[%emt 0:00:38]} 31. Rxf7 {[%emt 0:01:22]} Ne8 {[%emt 0:01:18]} 32. Rd7 {[%emt 0:01:39]} Nc7 {[%emt 0:00:06]} 33. Bxd5+ {[%emt 0:00:36]} Nxd5 {[%emt 0:00:27]} 1-0

[Event "Czech Open Rapid G1 2024"]
[Site "Pardubice"]
[Date "2024.07.17"]
[Round "2.15"]
[White "Kopriva, Martin"]
[Black "Prokofiev, Valentyn"]
[Result "1-0"]
[Annotator "RC"]
[ECO "B43"]
[WhiteElo "2159"]
[BlackElo "2337"]
[PlyCount "71"]
[EventDate "2024.07.16"]
[EventType "swiss"]
[EventCountry "CZE"]
[SourceTitle "playchess.com"]
[Source "ChessBase"]
[SourceQuality "1"]
[TimeControl "1200+10"]

1. e4 {[%emt 0:00:03]} c5 {[%emt 0:00:01]} 2. Nf3 {[%emt 0:00:01]} e6 {[%emt 0:00:01]} 3. d4 {[%emt 0:00:04]} cxd4 {[%emt 0:00:01]} 4. Nxd4 {[%emt 0:00:01]} a6 {[%emt 0:00:01]} 5. Nc3 {[%emt 0:00:07]} Qc7 {[%emt 0:00:01]} 6. Be2 {[%emt 0:00:33]} b5 {[%emt 0:00:05]} 7. O-O {[%emt 0:00:15]} Bb7 {[%emt 0:00:01]} 8. Re1 {[%emt 0:00:48]} Bb4 {[%emt 0:03:06]} 9. Bf3 {[%emt 0:01:17]} Ne7 {[%emt 0:00:59]} 10. a4 {[%emt 0:00:36]} bxa4 {[%emt 0:04:49]} 11. Rxa4 {[%emt 0:00:46]} Bxc3 {[%emt 0:00:48]} 12. bxc3 {[%emt 0:00:02]} O-O {[%emt 0:01:09]} 13. Ba3 {[%emt 0:00:01]} d6 {[%emt 0:00:01]} 14. e5 {[%emt 0:00:53]} dxe5 {[%emt 0:00:32]} 15. Nb3 {[%emt 0:11:58]} Rd8 {[%emt 0:02:17]} 16. Bxb7 {[%emt 0:00:23]} Ra7 {[%emt 0:02:31]} 17. Rc4 {[%emt 0:00:42]} Rxd1 {[%emt 0:00:15]} 18. Rxd1 {[%emt 0:00:02]} Nbc6 {[%emt 0:00:24]} 19. Bxc6 {[%emt 0:00:04]} g6 {[%emt 0:00:24]} 20. Rd7 {[%emt 0:00:38]} Qb6 {[%emt 0:00:52]} 21. Rxe7 {[%emt 0:00:39]} Rxe7 {[%emt 0:00:06]} 22. Bxe7 {[%emt 0:00:02]} Kg7 {[%emt 0:00:01]} 23. h4 {[%emt 0:01:15]} f5 {[%emt 0:00:05]} 24. Ba4 {[%emt 0:00:16]} Kf7 {[%emt 0:00:45]} 25. Rc6 {[%emt 0:00:36]} Qb8 {[%emt 0:00:33]} 26. Bd6 {[%emt 0:00:02]} Qd8 {[%emt 0:00:04]} 27. Rc7+ {[%emt 0:00:14]} Kg8 {[%emt 0:00:20]} 28. Bxe5 {[%emt 0:00:16]} Qxh4 {[%emt 0:00:06]} 29. Bd7 {[%emt 0:00:47]} Kf7 {[%emt 0:00:29]} 30. Bc8+ {[%emt 0:00:03]} Ke8 {[%emt 0:00:01]} 31. Nd4 {[%emt 0:00:44]} Qe4 {[%emt 0:00:42]} 32. Bf6 {[%emt 0:00:19]} Qe1+ {[%emt 0:01:09]} 33. Kh2 {[%emt 0:00:01]} Qc1 {[%emt 0:00:01]} 34. g3 {[%emt 0:00:30]} Qf1 {[%emt 0:00:05]} 35. Bd7+ {[%emt 0:00:24]} Kf7 {[%emt 0:00:04]} 36. Bb5+ {[%emt 0:00:00]} 1-0

[Event "Czech Open Rapid G1 2024"]
[Site "Pardubice"]
[Date "2024.07.17"]
[Round "2.16"]
[White "Burdalev, Kirill"]
[Black "Chaika, Vitalii"]
[Result "1-0"]
[Annotator "RC"]
[ECO "A55"]
[WhiteElo "2348"]
[BlackElo "2111"]
[PlyCount "109"]
[EventDate "2024.07.16"]
[EventType "swiss"]
[EventCountry "CZE"]
[SourceTitle "playchess.com"]
[Source "ChessBase"]
[SourceQuality "1"]
[TimeControl "1200+10"]

1. d4 {[%emt 0:01:48]} d6 {[%emt 0:00:02]} 2. Nf3 {[%emt 0:00:15]} c6 {[%emt 0:00:02]} 3. c4 {[%emt 0:00:17]} Nf6 {[%emt 0:00:31]} 4. Nc3 {[%emt 0:00:12]} Nbd7 {[%emt 0:00:35]} 5. e4 {[%emt 0:00:23]} e5 {[%emt 0:00:05]} 6. Be2 {[%emt 0:00:01]} Be7 {[%emt 0:00:02]} 7. h3 {[%emt 0:00:43]} O-O {[%emt 0:00:08]} 8. d5 {[%emt 0:00:10]} Nc5 {[%emt 0:00:41]} 9. Qc2 {[%emt 0:00:43]} a5 {[%emt 0:00:19]} 10. Be3 {[%emt 0:00:30]} Qc7 {[%emt 0:00:43]} 11. g4 {[%emt 0:02:05]} g6 {[%emt 0:01:27]} 12. Nd2 {[%emt 0:00:45]} cxd5 {[%emt 0:02:12]} 13. exd5 {[%emt 0:00:08]} Bd7 {[%emt 0:01:04]} 14. b3 {[%emt 0:01:37]} Rfc8 {[%emt 0:01:09]} 15. Rg1 {[%emt 0:00:23]} a4 {[%emt 0:01:42]} 16. b4 {[%emt 0:00:04]} Na6 {[%emt 0:00:08]} 17. a3 {[%emt 0:00:37]} b5 {[%emt 0:01:00]} 18. Rc1 {[%emt 0:00:49]} bxc4 {[%emt 0:00:26]} 19. Nxc4 {[%emt 0:00:01]} Rcb8 {[%emt 0:02:47]} 20. Qd2 {[%emt 0:00:37]} Qd8 {[%emt 0:02:03]} 21. h4 {[%emt 0:01:24]} Ne8 {[%emt 0:00:20]} 22. h5 {[%emt 0:01:05]} Ng7 {[%emt 0:01:28]} 23. Ne4 {[%emt 0:02:12]} Ne8 {[%emt 0:02:29]} 24. Na5 {[%emt 0:02:19]} Nc5 {[%emt 0:01:02]} 25. bxc5 {[%emt 0:00:23]} Qxa5 {[%emt 0:00:14]} 26. c6 {[%emt 0:00:30]} Bc8 {[%emt 0:00:10]} 27. Bc4 {[%emt 0:01:11]} Nc7 {[%emt 0:00:09]} 28. hxg6 {[%emt 0:00:58]} hxg6 {[%emt 0:00:03]} 29. Qxa5 {[%emt 0:01:02]} Rxa5 {[%emt 0:00:02]} 30. Bd2 {[%emt 0:00:53]} Raa8 {[%emt 0:00:18]} 31. Bb4 {[%emt 0:00:03]} Ne8 {[%emt 0:00:20]} 32. Ke2 {[%emt 0:00:01]} Ba6 {[%emt 0:00:05]} 33. Kd3 {[%emt 0:00:04]} Bxc4+ 34. Kxc4 {[%emt 0:00:01]} Ra7 {[%emt 0:00:51]} 35. Rb1 {[%emt 0:00:08]} f6 {[%emt 0:00:29]} 36. Bd2 {[%emt 0:00:08]} Raa8 {[%emt 0:00:10]} 37. Nc3 {[%emt 0:00:09]} Nc7 {[%emt 0:00:21]} 38. Rxb8+ {[%emt 0:00:03]} Rxb8 {[%emt 0:00:01]} 39. Rb1 {[%emt 0:00:06]} Rxb1 {[%emt 0:00:09]} 40. Nxb1 {[%emt 0:00:01]} f5 {[%emt 0:00:02]} 41. gxf5 {[%emt 0:00:03]} gxf5 {[%emt 0:00:01]} 42. Nc3 {[%emt 0:00:01]} Kf7 {[%emt 0:00:13]} 43. Nxa4 {[%emt 0:00:17]} Ke8 {[%emt 0:00:48]} 44. Nc3 {[%emt 0:00:05]} Kd8 {[%emt 0:00:18]} 45. a4 {[%emt 0:00:10]} Kc8 {[%emt 0:00:06]} 46. Be3 {[%emt 0:00:23]} Na8 {[%emt 0:00:18]} 47. Nb5 {[%emt 0:00:12]} f4 {[%emt 0:00:12]} 48. Ba7 {[%emt 0:00:18]} Bf8 {[%emt 0:00:11]} 49. Kd3 {[%emt 0:00:33]} Nc7 {[%emt 0:00:08]} 50. Nxc7 {[%emt 0:00:26]} Kxc7 {[%emt 0:00:01]} 51. Ke4 {[%emt 0:00:07]} Be7 {[%emt 0:00:06]} 52. a5 {[%emt 0:00:08]} Bh4 {[%emt 0:00:14]} 53. Bb6+ {[%emt 0:00:13]} Kc8 {[%emt 0:00:11]} 54. a6 {[%emt 0:00:06]} Kb8 {[%emt 0:00:12]} 55. c7+ {[%emt 0:00:06]} 1-0